Cogmind - Beta 11.2 @@@ ROGUE MODE // 2022.12.28 @ 22:40:09 // Winter2022/Polymind Player: TLFP Result: Destroyed by H-61 Shepherd via exploding Fusion Modulator Performance ------------- Evolutions (2) 1000 Regions Visited (4) 800 Robots Destroyed (4) 20 Value Destroyed (54) 54 Prototype IDs (0) 0 Alien Tech Used (0) 0 Bonus (2078) 2078 TOTAL SCORE: 3652 Bonus ------- Polymind Skill 1850 Pacifist 200 Follower Combat Kills 28 Cogmind --------- Core Integrity 0/550 Matter 100/100 Energy 50/50 System Corruption 0% Temperature Cool (12) Movement Core (50) Location -8/Materials Parts ------- > --- POWER (1) -------- (None) > --- PROPULSION (2) --- (None) > --- UTILITY (0) ------ (None) > --- WEAPON (1) ------- Light Assault Rifle > --- INVENTORY (0) ---- (None) Peak State ------------ > --- POWER ------------ Improved Ion Engine > --- PROPULSION ------- Light Treads Light Treads > --- UTILITY ---------- Heat Sink Heat Sink Light Armor Plating > --- WEAPON ----------- Beam Rifle Heavy Assault Rifle > --- INVENTORY -------- (None) [Rating: 11] Favorites ----------- Power Improved Ion Engine Engine Improved Ion Engine Propulsion Light Treads Treads Light Treads Wheel Wheel Hover Unit Hover Unit Flight Unit Flight Unit Utility Heat Sink Device Heat Sink Processor Visual Processing Unit Protection Light Armor Plating Weapon Beam Rifle Energy Gun Beam Rifle Ballistic Gun Heavy Assault Rifle Special Weapon Mining Laser Build | -11 -10 -9 -9 -8 ------- Run | Scr Mat Mat Min Mat Slots Evolved . | . . . . . Power . | . . . . . Propulsion . | . . . . . Utility . | . . . . . Weapon . | . . . . . Parts Attached . | . . . . . Power . | . . . . . Engine . | . . . . . Core . | . . . . . Reactor . | . . . . . Propulsion . | . . . . . Treads . | . . . . . Leg . | . . . . . Wheel . | . . . . . Hover . | . . . . . Flight . | . . . . . Utility . | . . . . . Device . | . . . . . Storage . | . . . . . Processor . | . . . . . Hackware . | . . . . . Protection . | . . . . . Artifact . | . . . . . Weapon . | . . . . . Energy Gun . | . . . . . Energy Cannon . | . . . . . Ballistic Gun . | . . . . . Ballistic Cannon . | . . . . . Launcher . | . . . . . Special Weapon . | . . . . . Impact Weapon . | . . . . . Slashing Weapon . | . . . . . Piercing Weapon . | . . . . . Special Melee Weapon . | . . . . . Unidentified Prototypes . | . . . . . Parts Lost 7 | . . . . 7 Power 2 | . . . . 2 Propulsion 4 | . . . . 4 Utility 1 | . . . . 1 Weapon . | . . . . . Highest Loss Streak 3 | . . . . 3 To Critical Strikes . | . . . . . Average Slot Usage (%) 86 | . 87 100 89 70 Engine 11 | . 14 13 10 11 Treads 17 | . . 18 22 8 Wheel 1 | . . . . 5 Hover 3 | . 28 8 . . Flight 1 | . . . . 4 Device 20 | . 14 22 22 15 Processor 3 | . 28 8 . . Protection 8 | . . 9 10 4 Energy Gun 8 | . . 9 10 4 Ballistic Gun 9 | . . 9 10 11 Naked Turns 113 | . 13 1 59 40 Heaviest Build 18 | . 4 18 18 18 Greatest Support 40 | 3 12 40 40 40 Greatest Overweight (x) 1 | . . . . 1 Average Overweight (x) . | . . . . . Largest Inventory Capacity 1 | . . 1 1 1 Average Capacity . | . . . . . Most Carried . | . . . . . Average Carried . | . . . . . Final Capacity 1 | . . 1 1 . Final Carried . | . . . . . Class Distribution -------------------- 68% | Sentry 11% | Cogmind 10% | Watcher 5% | Swarmer 4% | Tunneler Dominant Class ---------------- Watcher | -10/Materials Sentry | -9/Materials Sentry | -9/Mines Sentry | -8/Materials Resources | -11 -10 -9 -9 -8 ----------- Run | Scr Mat Mat Min Mat Matter Collected 77 | . . 21 56 . Remotely . | . . . . . Salvage Created 146 | . . 78 40 28 Parts 10 | . . 8 . 2 Haulers Intercepted 1 | . . 1 . . Recyclers Shooed . | . . . . . Parts Field Recycled . | . . . . . Retrieved Matter . | . . . . . Parts Self-Destructed . | . . . . . Prevented . | . . . . . Kills | -11 -10 -9 -9 -8 ------- Run | Scr Mat Mat Min Mat Combat Hostiles Destroyed 4 | . . . 3 1 Guns 4 | . . . 3 1 Classes Destroyed 4 | . . 2 1 1 Hauler 1 | . . 1 . . Watcher 2 | . . 2 . . Swarmer 1 | . . . . 1 Assembled 3 | . . . 3 . Best Kill Streak 3 | . . 3 2 1 Combat Bots Only 2 | . . . 2 1 Max Kills in Single Turn 1 | . . 1 1 1 Gunslinging . | . . . . . Exploded . | . . . . . Melee . | . . . . . Uniques/NPCs Destroyed . | . . . . . Combat | -11 -10 -9 -9 -8 -------- Run | Scr Mat Mat Min Mat Damage Taken 1625 | . . 37 535 1053 Core 1002 | . . 15 359 628 Absorbed by Shields . | . . . . . Core Remaining (%) 68 | 100 100 . 6 . Volleys Fired 24 | . . 4 11 9 Largest 2 | . . 2 2 2 Hottest 100 | . . 79 79 100 Shots Fired 40 | . . 8 22 10 Gun 37 | . . 8 22 7 Cannon . | . . . . . Launcher . | . . . . . Special 3 | . . . . 3 Kinetic 21 | . . 4 11 6 Thermal 19 | . . 4 11 4 Explosive . | . . . . . Electromagnetic . | . . . . . Robot Hit Streak 4 | . . 3 2 4 Robot Miss Streak 3 | . . 2 3 2 Penetration Max . | . . . . . Secondary Targets . | . . . . . Shots Hit Robots 17 | . . 4 7 6 Core Hits 11 | . . 3 4 4 Critical Kills . | . . . . . Critical Parts Destroyed . | . . . . . Critical Strikes 1 | . . . 1 . Burn 1 | . . . 1 . Melee Attacks . | . . . . . Impact . | . . . . . Slashing . | . . . . . Piercing . | . . . . . Sneak Attacks . | . . . . . Combat Hostiles . | . . . . . Follow-up Attacks . | . . . . . Damage Inflicted 285 | . . 89 96 100 Guns 222 | . . 78 96 48 Cannons . | . . . . . Explosions . | . . . . . Melee . | . . . . . Ramming 39 | . . 11 . 28 Kinetic 135 | . . 33 68 34 Thermal 111 | . . 45 28 38 Explosive . | . . . . . Electromagnetic . | . . . . . Impact . | . . . . . Slashing . | . . . . . Piercing . | . . . . . Highest Corruption 2 | . . 2 2 . Average Corruption 2 | . . 2 2 . Corruption Purged . | . . . . . Corruption Blocked . | . . . . . Effects 11 | . . 2 9 . Message Errors 2 | . . 1 1 . Matter Fused 1 | . . . 1 . Heat Flow Errors 1 | . . . 1 . Energy Discharges 3 | . . . 3 . Data Loss (minor) 2 | . . . 2 . Data Loss (major) 2 | . . 1 1 . Overload Shots . | . . . . . Overflow Damage . | . . . . . Projectiles . | . . . . . Explosions . | . . . . . Melee . | . . . . . Knockbacks . | . . . . . Impact . | . . . . . Kinetic . | . . . . . Secondary . | . . . . . Self-Inflicted Damage 18 | . . 5 . 13 Shots . | . . . . . Rammed 11 | . . 4 . 7 Targets Rammed 11 | . . 4 . 7 Kicked . | . . . . . Crushed . | . . . . . Highest Temperature 155 | . . 20 131 155 Average Temperature 76 | . . 14 66 79 Received Heat Transfer 243 | . . 27 51 165 Siege Activations . | . . . . . Robots Corrupted . | . . . . . Combat Hostiles . | . . . . . Parts Fried . | . . . . . Impact Corruptions . | . . . . . Robots Melted . | . . . . . Combat Hostiles . | . . . . . Parts Melted . | . . . . . Heat Transferred 346 | . . 111 148 87 Parts Sabotaged . | . . . . . Parts Stolen . | . . . . . Parts Stripped . | . . . . . Power Chain Reactions . | . . . . . Missiles Intercepted . | . . . . . Alert | -11 -10 -9 -9 -8 ------- Run | Scr Mat Mat Min Mat Peak Influence 173 | . 15 173 171 161 Initial 67 | . . 4 67 . Average 94 | . 10 125 98 98 Maximum Alert Level . | . . . . . Low Security (%) 100 | 100 100 100 100 100 Level 1 . | . . . . . Level 2 . | . . . . . Level 3 . | . . . . . Level 4 . | . . . . . Level 5 . | . . . . . High Security . | . . . . . Max Security . | . . . . . Squads Dispatched 4 | . . 1 . 3 Investigation . | . . . . . Extermination . | . . . . . Reinforcement 4 | . . 1 . 3 Assault . | . . . . . Garrison . | . . . . . Intercept . | . . . . . Searches Triggered . | . . . . . Construction Impeded . | . . . . . Haulers Reinforced . | . . . . . Active Scanning Responses . | . . . . . Cargo Convoy Interrupts . | . . . . . Stealth | -11 -10 -9 -9 -8 --------- Run | Scr Mat Mat Min Mat Distress Signals . | . . . . . Communications Jammed . | . . . . . Distress Signals . | . . . . . Times Spotted 66 | . 1 6 8 51 Peak Tracking Total 14 | . 1 3 3 14 Tactical Retreats 1 | . . . 1 . Traps | -11 -10 -9 -9 -8 ------- Run | Scr Mat Mat Min Mat Traps Triggered . | . . . . . Indirectly . | . . . . . Trap Hack Attempts . | . . . . . Triggered . | . . . . . Disarmed . | . . . . . Reprogrammed . | . . . . . Reused . | . . . . . Traps Extracted . | . . . . . Installed . | . . . . . Triggered . | . . . . . Machines | -11 -10 -9 -9 -8 ---------- Run | Scr Mat Mat Min Mat Machines Disabled 1 | . . 1 . . Max in Single Turn 1 | . . 1 . . Machines Sabotaged . | . . . . . Garrisons Compromised . | . . . . . Overloaded Fab Kills . | . . . . . Hacking | -11 -10 -9 -9 -8 --------- Run | Scr Mat Mat Min Mat Machines Accessed . | . . . . . Terminals . | . . . . . Fabricators . | . . . . . Repair Stations . | . . . . . Recycling Units . | . . . . . Scanalyzers . | . . . . . Garrison Access . | . . . . . Total Hacks . | . . . . . Successful . | . . . . . Failed . | . . . . . Catastrophic . | . . . . . Database Lockouts . | . . . . . Manual . | . . . . . Terminals . | . . . . . Fabricators . | . . . . . Repair Stations . | . . . . . Recycling Units . | . . . . . Scanalyzers . | . . . . . Garrison Access . | . . . . . Terminal Hacks . | . . . . . Fabricator Hacks . | . . . . . Repair Station Hacks . | . . . . . Recycling Unit Hacks . | . . . . . Scanalyzer . | . . . . . Garrison Access Hacks . | . . . . . Unauthorized Hacks . | . . . . . Terminals . | . . . . . Fabricators . | . . . . . Repair Stations . | . . . . . Recycling Units . | . . . . . Scanalyzers . | . . . . . Garrison Access . | . . . . . Data Cores Recovered . | . . . . . Used . | . . . . . Hacking Detections . | . . . . . Full Trace Events . | . . . . . Feedback Events . | . . . . . Feedback Blocked . | . . . . . Robot Schematics Acquired . | . . . . . Robots Built . | . . . . . Authchips . | . . . . . Time . | . . . . . Total Robot Build Rating . | . . . . . Part Schematics Acquired . | . . . . . Parts Built . | . . . . . Authchips . | . . . . . Time . | . . . . . Total Part Build Rating . | . . . . . Parts Repaired . | . . . . . Time . | . . . . . Parts Recycled . | . . . . . Recycled Matter . | . . . . . Retrieved Matter . | . . . . . Retrieved Components . | . . . . . Parts Scanalyzed . | . . . . . Part Schematics Acquired . | . . . . . Parts Damaged . | . . . . . Bothacking | -11 -10 -9 -9 -8 ------------ Run | Scr Mat Mat Min Mat Used RIF Installer . | . . . . . Robots Hacked 5 | . 1 1 1 2 Non-combat 1 | . 1 . . . Combat 4 | . . 1 1 2 Robot Hacks Applied 6 | . 2 1 1 2 map_route 1 | . 1 . . . mark_security 1 | . 1 . . . find_shortcuts 4 | . . 1 1 2 Relay Couplers Released . | . . . . . Fabnet Peak Effective % . | . . . . . Robots Rewired . | . . . . . Allies Hacked . | . . . . . Hacks Repelled . | . . . . . Allies | -11 -10 -9 -9 -8 -------- Run | Scr Mat Mat Min Mat Total Allies 3 | . . . 3 . Largest Group 3 | . . . 3 . Highest-Rated Group 40 | . . . 40 . Highest-Rated Ally 16 | . . . 16 . Total Orders . | . . . . . Ally Attacks 25 | . . . 25 . Total Damage 215 | . . . 215 . Kills 6 | . . . 6 . Allies Corrupted . | . . . . . Allies Melted . | . . . . . Intel | -11 -10 -9 -9 -8 ------- Run | Scr Mat Mat Min Mat Robot Analysis Total 4 | . 1 1 . 2 Derelict Logs Recovered . | . . . . . Drone Launches . | . . . . . Drone Recoveries . | . . . . . Exploration | -11 -10 -9 -9 -8 ------------- Run | Scr Mat Mat Min Mat Turns Passed 991 | 2 77 121 588 203 Spaces Moved 891 | 5 127 104 429 226 Core 291 | 5 25 2 118 141 Treads 389 | . . 46 311 32 Legs . | . . . . . Wheels 29 | . . . . 29 Hover 158 | . 102 56 . . Flight 24 | . . . . 24 Fastest Speed 37 | 50 50 50 50 37 Average Speed 100 | 50 54 101 129 72 Slowest Speed 160 | 50 56 160 160 160 Overloaded Moves . | . . . . . Propulsion Burnouts . | . . . . . Robots Hopped . | . . . . . Cave-ins Triggered . | . . . . . Exploration Rate (%) 32 | 2 35 17 76 30 Regions Visited 4 Branch Regions 1 Pre-discovered Areas . | . . . . . Known Exits Taken 1 | . 1 . . . Unknown Exits Taken 3 | 1 . 1 1 . Scrap Searched 1 | . . . 1 . Spaces Dug . | . . . . . Terrain Destroyed 1 | . . . . 1 Melee . | . . . . . Projectile 1 | . . . . 1 AOE . | . . . . . Terrain Rammed . | . . . . . Walls Destroyed . | . . . . . Machines Disabled . | . . . . . Actions | -11 -10 -9 -9 -8 --------- Run | Scr Mat Mat Min Mat Total 937 | 4 133 111 439 250 Wait 15 | . 7 . . 8 Move 887 | 4 126 103 428 226 Hop . | . . . . . Pick Up . | . . . . . Fast Attach . | . . . . . Attach . | . . . . . Detach . | . . . . . Swap . | . . . . . Drop . | . . . . . Fire 24 | . . 4 11 9 Melee . | . . . . . Ram 11 | . . 4 . 7 Kick . | . . . . . Crush . | . . . . . Escape Stasis . | . . . . . Rewire . | . . . . . Trap . | . . . . . Miscellaneous . | . . . . . Route ------- -11/Scrapyard -10/Materials -9/Materials (discovered 2 exits: [*Min] / *Sto) -9/Mines -8/Materials History --------- Turn | Location | Event 1 | -11/Scrapyard | Discovered new exit (range 3) 3 | -11/Scrapyard | Entered Materials 68 | -10/Materials | Discovered new exit (range 4) 79 | -10/Materials | Identified exit to Materials 80 | -10/Materials | Entered another Materials area 80 | -9/Materials | Discovered new exit (range 7) 88 | -9/Materials | Identified exit to Storage 182 | -9/Materials | Discovered new exit (range 12) 201 | -9/Materials | Entered Mines 205 | -9/Mines | Assisted by bots powering up and referring to "LRC-V3" 257 | -9/Mines | Met a Derelict bent on vengeance 399 | -9/Mines | Assembled infested the area 404 | -9/Mines | Assisted by a Guerilla fighting off Assembled 557 | -9/Mines | Core integrity fell below 50% 559 | -9/Mines | Core integrity fell below 20% 783 | -9/Mines | Discovered new exit (range 4) 789 | -9/Mines | Entered Materials 935 | -8/Materials | Lost 3 parts (1p2n) 939 | -8/Materials | Core integrity fell below 50% 979 | -8/Materials | Core integrity fell below 20% 992 | -8/Materials | Destroyed by H-61 Shepherd via exploding Fusion Modulator Last Messages --------------- 00926_ M-13 Machinist repairs L-31 Rogue. 00933_ ALERT: Hostiles spotted, dispatching reinforcements to Terminal M002. 00937_ S-10 Pest suffers critical hit (Destroy). 00946_ Took control of S-10 Pest. 00948_ S-10 Pest destroyed. 00953_ Flight Unit destroyed. 00959_ S-10 Pest destroyed. 00961_ Penetrated by Slug. 00965_ K-01 Serf collects debris. 00974_ Lgt. Ion Engine destroyed. 00977_ Slammed into S-10 Pest. 00982_ ALERT: Suspicious intruders detected, dispatching Cutter reinforcements to area. 00991_ C-17 Slicer knocked back. 00992_ Neutrino Reactor explodes. 00992_ Terminal disabled. 00992_ Slug penetrates Fusion Modulator. 00992_ Fusion Modulator explodes. [Achievement: Overachiever] Map ----- +----------------------------------------------------+ | # #???????# # = # """#??+???????????? | | # """ ##+##???# # =% + """#??????????????? | | # """ # ##### # ##### #??????????????? | | # """ / / # #???# #??????????????? | | # # ##### # #???# [ +??????????????? | | # ## ##???# # #???#######??????????????? | | # |## ######/###### #????????????????????????? | | ######## #"T"## ###### #????????????????????????? | | ???????# // #????????????????????????? | | ???????# /* #????????????????????????? | | ???##### #??#?????????????????????? | | ???#!! #?? ?????????????????????? | | ???#!! ####### #? ?????????????????????? | | ???#!! ! #?????# #? ?????????????????????? | | ???#!! #?????# #? ????????????????????? | | ???#!! ####### + """"???????????????????? | | ???#!! ## # # # """????????????????????? | | ???####?# # [ # ""?????????????????????? | | ????????# # # ??????????????????????? | | ????????# # #??+????????????????????? | | ????????# ### + % #???????????????????????? | | ????????#+#?# # " * #?#+#####???????????????? | | ????????????# # [ ##?! """ ??????????????? | | ????????????# ####### ## ! "T" #?????????????? | | ???????????? ! ##### # #?????????????? | | ???????????+ u H s """ ??????????????? | | ???????????# T c """ ??????????????? | | ???????????#! #### """ ??????????????? | | ???????????## ##??## ; #?????????????? | | ????????????# #??? # ;#????????????? | | ????????????# #??"" c ###;;#######????????????? | | ????????????# ? """ # ???????????????????????? | | ????????????? ? """ # ???????????????????????? | | ????????????? ??? ?#####???????????????????????? | | ?????????????????###?????????????????????????????? | | ?????????????????????????????????????????????????? | | ?????????????????????????????????????????????????? | | ?????????????????????????????????????????????????? | | ?????????????????????????????????????????????????? | | ?????????????????????????????????????????????????? | | ?????????????????????????????????????????????????? | | ?????????????????????????????????????????????????? | | ?????????????????????????????????????????????????? | | | | | | | | | | | | | | | +----------------------------------------------------+ Best States ------------- Heat Dissipation 39 Energy Generation 17 Energy Capacity 215 Matter Stores 100 Matter Capacity 100 Sight Range 18 Robot Scan Range 14 Terrain Scan Range 16 Terrain Scan Density 10 Armor Coverage 150 Resistance: EX 50 Resistance: I 25 Evasion (%) 62 Recoil Reduction 2 Item Schematics ----------------- None Robot Schematics ------------------ None Fabricated ------------ Nothing Alien Tech Used ----------------- None Achievements -------------- Overachiever Challenges ------------ None Polymind | -11 -10 -9 -9 -8 ---------- Run | Scr Mat Mat Min Mat Robots Controlled 6 | . 1 1 1 3 Combat Hostiles 4 | . . 1 1 2 Allies . | . . . . . Classes Controlled 4 | . 1 1 . 2 Average Host Suspicion 50 | . 26 83 36 79 Unsuspicious Activity 107 | . 6 . 101 . Returns to Shadow . | . . . . . Fuzzy Dispatches . | . . . . . Protomatter Created 50 | . . . 46 4 Used 75 | . 12 23 23 17 Decayed 14 | . . . 14 . Highest Spend 23 | . 12 23 23 6 Top 5 Hosts by Kills: Y-45 Defender (-9/Mines: 3) Game ------ Seed LightningMomentumScythe Manual? 0 Play Time 00:15:11 Cumulative 84.8 hours Start 2022.12.28 @ 22:27:26 End 2022.12.28 @ 22:40:09 Sessions 1 Manual Loads 0 Difficulty Rogue Special Mode Winter2022/Polymind Game No. 62 Rogue 22 Adventurer 32 Explorer 8 Win Type - Total 1 Types 1/0/0/0/0/0/0/0/0 Lore% 51 Gallery% 54 Achievement% 50 Wizard Run 0 Options --------- ASCII 0 Keyboard 0 Movement Mouse Keybinds 0 Fullscreen 1 Font 18/SmallcapsGlow Map View 76x50 Tactical HUD 1 Map Filters NONE Filters NONE Steam 1 RUN: b7db579b-7a58-4ff1-a385-a4b39e665598